Cogmind - Beta 13 @@@ ROGUE MODE // 2024.05.18 @ 23:30:40 Player: Cat Result: Destroyed by G-34 Mercenary with Small Laser Performance ------------- Evolutions (0) 0 Regions Visited (1) 200 Robots Destroyed (17) 85 Value Destroyed (355) 355 Prototype IDs (2) 40 Alien Tech Used (0) 0 Bonus (0) 0 TOTAL SCORE: 680 Bonus ------- None Cogmind --------- Core Integrity 0/250 Matter 2/400 Energy 124/125 System Corruption 2% Temperature Cool (6) Movement Core (150) Ox2 Location -10/Materials Parts ------- > --- POWER (1) -------- Light Ion Engine > --- PROPULSION (2) --- (None) > --- UTILITY (2) ------ Medium Matter Pod Seismic Detector > --- WEAPON (2) ------- Light Cannon > --- INVENTORY (5) ---- Heat Sink Huge Storage Unit Targeting Computer Peak State ------------ > --- POWER ------------ Light Ion Engine > --- PROPULSION ------- Aluminum Leg Flight Unit > --- UTILITY ---------- Medium Matter Pod Terrain Scanner > --- WEAPON ----------- Mining Laser Mining Laser > --- INVENTORY -------- Aluminum Leg Assault Rifle Light Assault Rifle Grenade Launcher [Rating: 7] Favorites ----------- Power Light Ion Engine Engine Light Ion Engine Propulsion Aluminum Leg Leg Aluminum Leg Wheel Compact Wheel Hover Unit Hover Unit Flight Unit Flight Unit Utility Medium Matter Pod Device Seismic Detector Storage Medium Matter Pod Weapon Assault Rifle Ballistic Gun Assault Rifle Ballistic Cannon Light Cannon Launcher Grenade Launcher Special Weapon Mining Laser Build | -11 -10 ------- Run | Yrd Mat Slots Evolved . | . . Power . | . . Propulsion . | . . Utility . | . . Weapon . | . . Parts Attached 35 | 7 28 Power 3 | 1 2 Engine 3 | 1 2 Core . | . . Reactor . | . . Propulsion 13 | 4 9 Treads . | . . Leg 5 | 2 3 Wheel 4 | 2 2 Hover 2 | . 2 Flight 2 | . 2 Utility 7 | . 7 Device 2 | . 2 Storage 5 | . 5 Processor . | . . Hackware . | . . Protection . | . . Artifact . | . . Weapon 12 | 2 10 Energy Gun . | . . Energy Cannon . | . . Ballistic Gun 6 | 2 4 Ballistic Cannon 1 | . 1 Launcher 3 | . 3 Special Weapon 2 | . 2 Impact Weapon . | . . Slashing Weapon . | . . Piercing Weapon . | . . Special Melee Weapon . | . . Unidentified Prototypes . | . . Parts Lost 7 | . 7 Power . | . . Propulsion 3 | . 3 Utility 1 | . 1 Weapon 3 | . 3 Highest Loss Streak 3 | . 3 To Critical Strikes . | . . Average Slot Usage (%) 84 | . 84 Engine 14 | . 14 Leg 15 | . 15 Wheel 2 | . 2 Hover 2 | . 2 Flight 3 | . 3 Device 9 | . 9 Storage 8 | . 8 Ballistic Gun 18 | . 18 Ballistic Cannon 1 | . 1 Launcher 4 | . 4 Special Weapon 2 | . 2 Naked Turns . | . . Heaviest Build 87 | 6 87 Greatest Support 26 | 20 26 Greatest Overweight (x) 5 | . 5 Average Overweight (x) . | . . Largest Inventory Capacity 25 | 5 25 Average Capacity 5 | 5 5 Most Carried 5 | 5 5 Average Carried 3 | 4 3 Final Capacity 5 | 5 5 Final Carried 5 | 5 3 Class Distribution -------------------- 81% | Mutant 18% | Scavenger-Mutant Dominant Class ---------------- Mutant | -10/Materials Resources | -11 -10 ----------- Run | Yrd Mat Matter Collected 492 | 302 190 Remotely . | . . Salvage Created 393 | 48 345 Parts 24 | 2 22 Haulers Intercepted . | . . Recyclers Shooed . | . . Parts Field Recycled . | . . Retrieved Matter . | . . Parts Self-Destructed . | . . Prevented . | . . Kills | -11 -10 ------- Run | Yrd Mat Combat Hostiles Destroyed 12 | 1 11 Guns 4 | 1 3 Cannons 2 | . 2 AOE 6 | . 6 Classes Destroyed 5 | 1 4 Builder 2 | . 2 Recycler 1 | . 1 Watcher 2 | . 2 Swarmer 6 | . 6 Grunt 6 | 1 5 Best Kill Streak 7 | 1 7 Combat Bots Only 5 | 1 5 Max Kills in Single Turn 3 | 1 3 Gunslinging . | . . Exploded 2 | . 2 Melee . | . . Uniques/NPCs Destroyed . | . . Combat | -11 -10 -------- Run | Yrd Mat Hostile Shots Fired 110 | 9 101 Missed 23 | 1 22 Damage Taken 921 | 87 834 Core 254 | 33 221 Absorbed by Shields . | . . Regen/Repaired (Parts) 9 | . 9 Core Remaining (%) 86 | 86 . Volleys Fired 54 | 8 46 Largest 2 | 2 2 Hottest 200 | 40 200 Shots Fired 94 | 16 78 Gun 66 | 16 50 Cannon 12 | . 12 Launcher 9 | . 9 Special 7 | . 7 Kinetic 78 | 16 62 Thermal 7 | . 7 Explosive 9 | . 9 Electromagnetic . | . . Robot Hit Streak 5 | 5 5 Robot Miss Streak 4 | 3 4 Penetration Max . | . . Secondary Targets . | . . Shots Hit Robots 44 | 9 35 Core Hits 26 | 2 24 Critical Kills . | . . Critical Parts Destroyed . | . . Critical Strikes 1 | . 1 Blast 1 | . 1 Melee Attacks . | . . Impact . | . . Slashing . | . . Piercing . | . . Sneak Attacks . | . . Combat Hostiles . | . . Follow-up Attacks . | . . Damage Inflicted 957 | 92 865 Guns 326 | 92 234 Cannons 140 | . 140 Explosions 466 | . 466 Melee . | . . Ramming 1 | . 1 Kinetic 466 | 92 374 Thermal 24 | . 24 Explosive 466 | . 466 Electromagnetic . | . . Impact . | . . Slashing . | . . Piercing . | . . Highest Corruption 2 | . 2 Average Corruption 2 | . 2 Corruption Purged . | . . Corruption Blocked . | . . Effects 9 | . 9 Message Errors 3 | . 3 Matter Fused 3 | . 3 Heat Flow Errors 1 | . 1 Data Loss (minor) 1 | . 1 Misfires 1 | . 1 Overload Shots . | . . Overflow Damage 24 | . 24 Projectiles . | . . Explosions 24 | . 24 Melee . | . . Knockbacks 2 | . 2 Impact . | . . Kinetic 2 | . 2 Secondary . | . . Self-Inflicted Damage 27 | . 27 Shots 2 | . 2 Rammed . | . . Targets Rammed 1 | . 1 Kicked 1 | . 1 Crushed . | . . Highest Temperature 258 | 12 258 Average Temperature 50 | 8 54 Received Heat Transfer 330 | 48 282 Effects 2 | . 2 Interference 2 | . 2 Siege Activations . | . . Robots Corrupted . | . . Combat Hostiles . | . . Parts Fried . | . . Impact Corruptions . | . . Robots Melted . | . . Combat Hostiles . | . . Parts Melted . | . . Heat Transferred 50 | . 50 Parts Sabotaged . | . . Parts Stolen . | . . Parts Stripped . | . . Power Chain Reactions . | . . Alert | -11 -10 ------- Run | Yrd Mat Peak Influence 293 | 20 293 Initial . | . . Average 104 | 13 152 Maximum Alert Level 1 | . 1 Low Security (%) 77 | 100 66 Level 1 22 | . 33 Level 2 . | . . Level 3 . | . . Level 4 . | . . Level 5 . | . . High Security . | . . Max Security . | . . Squads Dispatched 2 | . 2 Investigation 2 | . 2 Extermination . | . . Reinforcement . | . . Assault . | . . Garrison . | . . Intercept . | . . Searches Triggered . | . . Construction Impeded . | . . Haulers Reinforced . | . . Active Scanning Responses . | . . Cargo Convoy Interrupts . | . . Stealth | -11 -10 --------- Run | Yrd Mat Distress Signals 2 | . 2 Communications Jammed . | . . Distress Signals . | . . Times Spotted 22 | 1 21 Peak Tracking Total 6 | 1 6 Tactical Retreats . | . . Traps | -11 -10 ------- Run | Yrd Mat Traps Triggered 2 | . 2 Indirectly . | . . Trap Hack Attempts . | . . Triggered . | . . Disarmed . | . . Reprogrammed . | . . Reused . | . . Traps Extracted . | . . Installed . | . . Triggered . | . . Machines | -11 -10 ---------- Run | Yrd Mat Machines Disabled 3 | . 3 Max in Single Turn 1 | . 1 Machines Repaired . | . . Machines Dismantled . | . . Machines Sabotaged . | . . Overloaded Fab Kills . | . . Hacking | -11 -10 --------- Run | Yrd Mat Machines Accessed 7 | . 7 Terminals 5 | . 5 Fabricators . | . . Repair Stations 1 | . 1 Recycling Units 1 | . 1 Scanalyzers . | . . Garrison Access . | . . Total Hacks 29 | . 29 Successful 20 | . 20 Failed 9 | . 9 Catastrophic 2 | . 2 Database Lockouts . | . . Manual . | . . Terminals 20 | . 20 Fabricators . | . . Repair Stations 4 | . 4 Recycling Units 5 | . 5 Scanalyzers . | . . Garrison Access . | . . Terminal Hacks 13 | . 13 Record 5 | . 5 Robot Analysis 1 | . 1 Prototype ID Bank 1 | . 1 Alert Level 3 | . 3 Locate Traps 1 | . 1 Dispatch Records 1 | . 1 Maintenance Status 1 | . 1 Fabricator Hacks . | . . Repair Station Hacks 2 | . 2 Scan Component 1 | . 1 Repair 1 | . 1 Recycling Unit Hacks 5 | . 5 Recycle Component 1 | . 1 Process 3 | . 3 Report Inventory 1 | . 1 Scanalyzer . | . . Garrison Access Hacks . | . . Unauthorized Hacks . | . . Terminals . | . . Fabricators . | . . Repair Stations . | . . Recycling Units . | . . Scanalyzers . | . . Garrison Access . | . . Data Cores Recovered . | . . Used . | . . Hacking Detections 6 | . 6 Full Trace Events 4 | . 4 Feedback Events . | . . Feedback Blocked . | . . Robot Schematics Acquired . | . . Robots Built . | . . Authchips . | . . Time . | . . Total Robot Build Rating . | . . Part Schematics Acquired . | . . Parts Built . | . . Authchips . | . . Time . | . . Total Part Build Rating . | . . Parts Repaired 1 | . 1 Time 26 | . 26 Parts Recycled 1 | . 1 Recycled Matter 12 | . 12 Retrieved Matter . | . . Retrieved Components . | . . Parts Scanalyzed . | . . Part Schematics Acquired . | . . Parts Damaged . | . . Bothacking | -11 -10 ------------ Run | Yrd Mat Used RIF Installer . | . . Robots Hacked . | . . Non-combat . | . . Combat . | . . Robot Hacks Applied . | . . Relay Couplers Released . | . . Fabnet Peak Effective % . | . . Robots Rewired . | . . Allies Hacked . | . . Hacks Repelled . | . . Allies | -11 -10 -------- Run | Yrd Mat Total Allies . | . . Largest Group . | . . Highest-Rated Group . | . . Highest-Rated Ally . | . . Total Orders . | . . Ally Attacks . | . . Total Damage . | . . Kills . | . . Allies Corrupted . | . . Allies Melted . | . . Intel | -11 -10 ------- Run | Yrd Mat Robot Analysis Total 1 | . 1 Derelict Logs Recovered . | . . Drone Launches . | . . Drone Recoveries . | . . Exploration | -11 -10 ------------- Run | Yrd Mat Turns Passed 1316 | 453 863 Spaces Moved 696 | 152 544 Core 89 | 26 63 Treads . | . . Legs 459 | 121 338 Wheels 60 | 5 55 Hover 88 | . 88 Flight . | . . Fastest Speed 50 | 50 90 Average Speed 118 | 106 121 Slowest Speed 175 | 120 175 Overloaded Moves . | . . Propulsion Burnouts . | . . Robots Hopped . | . . Cave-ins Triggered . | . . Exploration Rate (%) 41 | 8 74 Regions Visited 1 Branch Regions . Pre-discovered Areas . | . . Known Exits Taken . | . . Unknown Exits Taken 1 | 1 . Scrap Searched . | . . Spaces Dug 2 | . 2 Terrain Destroyed 60 | . 60 Melee . | . . Projectile 5 | . 5 AOE 55 | . 55 Terrain Rammed . | . . Walls Destroyed . | . . Machines Disabled . | . . Actions | -11 -10 --------- Run | Yrd Mat Total 1086 | 427 659 Wait 258 | 251 7 Move 695 | 151 544 Hop . | . . Pick Up 29 | 10 19 Fast Attach 1 | . 1 Attach 17 | 5 12 Detach . | . . Swap 17 | 2 15 Drop 14 | . 14 Fire 54 | 8 46 Melee . | . . Ram . | . . Kick 1 | . 1 Crush . | . . Escape Stasis . | . . Rewire . | . . Trap . | . . Miscellaneous . | . . Route ------- -11/Scrapyard -10/Materials (discovered 4 exits: [*Mat x3] / [*Min]) History --------- Turn | Location | Event 2 | -11/Scrapyard | Met Revision 17 76 | -11/Scrapyard | Discovered new exit (range 8) 454 | -11/Scrapyard | Entered Materials 455 | -10/Materials | Build established: Mutant 564 | -10/Materials | Core integrity fell below 50% 661 | -10/Materials | Discovered new exit (range 14) 795 | -10/Materials | Discovered new exit (range 3) 849 | -10/Materials | Repaired Flight Unit? 894 | -10/Materials | Lost 3 parts (1u2w) 1068 | -10/Materials | Discovered new exit (range 3) 1153 | -10/Materials | Discovered new exit (range 5) 1297 | -10/Materials | Core integrity fell below 20% 1315 | -10/Materials | Lost 3 parts (2n1w) 1317 | -10/Materials | Destroyed by G-34 Mercenary with Small Laser Last Messages --------------- >>Recycling(Report) Matter reserves: 12 Inventory: Empty ALERT: Suspicious activity at Recycling Unit M001. Dispatching Investigation squad. System corrupted: Component data lost. W-16 Scout knocked back. W-16 Scout destroyed. Terminal disabled. U-05 Engineer destroyed. G-34 Mercenary Heat Sink blasted off. U-05 Engineer builds a Wall. Grenade Launcher destroyed. Flight Unit destroyed. Hover Unit destroyed. G-34 Mercenary destroyed. U-05 Engineer lays Concrete. G-34 Mercenary knocked back. [Achievement: Oops] [Achievement: First Step to Greatness] Map ----- +----------------------------------------------------+ | " ###???# #?# #????????????? | | "" ##????# #?# #????????????? | | """ # #??## ### #????????????? | | """ # #??# ###+####??????????? | | # #??# #??????????? | | # #??# < #??????????? | | ##### ###??# #??????????? | | #??## #????# ########??????????? | | ????# #????#### #?#?###???????????? | | ????# #???????# #? #??????????? | | ????# #???????# #? """ #??????????? | | ????# #???????# # """ #??????????? | | ????# #???????# # """ ########???? | | ????# # ????# # # [ #???? | | ????? # ???# # """ # """ [#???? | | ????# # "??# + """ # """ =#???? | | ????+ +?? ?# # """ # """ #???? | | ????# #??? # # # =#???? | | ????# #?????### ###### #???? | | ????# #?????# #######+##+###???? | | ????# #?????# !% [ #????? | | ????# #?????# ! ==%=%= % ####?? | | ?#### #?????# |!%######g## !#?? | | ?? ######## ##[[ # !#? | | ??? # ###[ # !#? | | ##### # % #?# @ # !#? | | # # ! #?# "Y" # !#? | | " # # % #?# """ # !##? | | " # + """ # #?# # ####?? | | " # # """"" #####?######## #????? | | + # """"" #????????????####????? | | " # # """"" #????????????????????? | | " # < # """ #????????????????????? | | " # # #????????????????????? | | ##### #????????????????????? | | #####???#########????????????????????? | | ?????????????????????????????????????? | | ?????????????????????????????????????? | | ?????????????????????????????????????? | | ?????????????????????????????????????? | | ?????????????????????????????????????? | | ?????????????????????????????????????? | | | | | | | | | | | | | | | | | +----------------------------------------------------+ Best States ------------- Heat Dissipation 25 Energy Generation 10 Energy Capacity 125 Matter Stores 300 Matter Capacity 400 Sight Range 16 Terrain Scan Range 14 Terrain Scan Density 10 Evasion (%) 55 Item Schematics ----------------- None Robot Schematics ------------------ None Fabricated ------------ Nothing Alien Tech Used ----------------- None Achievements -------------- First Step to Greatness One Hack Too Far Oops Part-time Mechanic Challenges ------------ None Game ------ Seed TargetingAblativeMount Manual? 0 Play Time 00:38:20 Cumulative 0.5 hours Start 2024.05.18 @ 22:51:55 End 2024.05.18 @ 23:30:40 Sessions 1 Manual Loads 0 Difficulty Rogue Special Mode None Game No. 1 Rogue 1 Adventurer 0 Explorer 0 Win Type - Total 0 Types 0/0/0/0/0/0/0/0/0 Lore% 0 Gallery% 1 Achievement% 1 Wizard Run 0 Options --------- Layout 1 ASCII 0 Keyboard 0 Movement Mouse Keybinds 0 Fullscreen 1 Font 24/Smallcaps Map View 50x35 Zoom Use 0% Tactical HUD 0 Map Filters NONE Filters NONE Steam 1 RUN: 4099d7aa-f40c-48b0-92f9-6ca385bff853